Workbook

Sheet Instructions
B1: Efficient sampling tool
B3: User guidance
B5: General principles
B7: For an introduction to this style of statistical sampling please see the article "Efficient samples for internal control and audit testing" at http://www.workinginuncertainty.co.uk/samples.shtml.
B9: This workbook offers two formats for using these techniques. The Test Schedule format is a classic auditor's test schedule, with space for a list of sample items and up to three tests on each item. As you answer Y (yes) or N (no) for each test on each item the statistical inferences you can make from your testing are immediately updated at the top of the page.
B11: Although it makes sense to have some idea of how many items you are likely to test before you start testing it is not necessary to make a firm decision before you start. Just start testing and stop when the conclusions are clear enough for your purposes.
B13: The other format is a Summary format, where you can just enter summary results (number of items tested and number of exceptions found) from several samples or tests, and see statistics inferred from your evidence.
B15: These formulae are appropriate where you want to assess the exception rate of a process at a point in time using sampled items processed at around that time. They are also suitable for sampling from very large populations. They are NOT appropriate for sampling from small populations.
B17: One of the big advantages of Bayesian statistics is that it helps us combine evidence from more than one source, so to do that both formats give you a way to express what you already believe about the exception rate using a technique called Equivalent Prior Samples. You don't have to do this but if you do then the end result from these spreadsheets is statements about the exception rate that combine what you knew before with what you have learned from your new sample.
B19: Unless you bring in other evidence the formulae in these spreadsheets make the democractic assumption that all exception rates are equally likely. However, the results of other tests, the continued trading of a company, and our general experience of processes designed to work tells us that lower error rates are usually more likely than very high ones. For example, if you are testing telephone bills and want to know what proportion of them are wrong it is much more likely that 1% are wrong than 99%.
B21: The idea of Equivalent Prior Samples is that you imagine that your views about the exception rate before starting on the new sample are the result of having tested a previous sample. You then enter a number of items tested and a number of exceptions found in that imaginary previous sample.
B23: In practice, of course, it's hard to use your imagination like that. However, you can think how confident you are that the exception rate is less than 5% and then adjust your prior sample numbers to match that view. If you're not sure, always err on the side of smaller prior sample sizes, or just leave the prior sample figures at zero and let all the evidence come from your new sample.
B25: Both formats tell you the confidence that the exception rate is below 5%, below 1% and below 0.1%. This is to give you a feel for what the complete distribution looks like. The complete distribution can be viewed on the Test Schedule worksheet to see its general shape.
B27: If you need to prove very low exception rates then you will find that the equivalent prior sample doesn't usually save you much testing, relatively. However, if you are doing a small number of very expensive tests and the error rate sought is not particularly low then you may find that bringing in other evidence helps you cut sample testing costs considerably.
B29: Now here are detailed points on each format.
B31: Test Schedule format
B33: For an example of the Test Schedule format filled in see the Test Schedule example worksheet.
B35: Areas that you might want to type in are surrounded by a black line.
B37: The only part of this that's not obvious from the general introduction and example is how the graph works.
B39: The graph shows the probability density of beliefs about the exception rate. Put another way, the line is high over exception rates that are likely. The exception rate can range from 0 to 1 (i.e. 0 to 100%) but most real exception rates are quite low so I've given you two cells (C64 and C65) to set the upper and lower boundary of the range you want to see. Don't forget to keep these between 0 and 1.
B41: If you change the range from its starting value then the Excel chart that shows the curves will also have to be adjusted. Change the scale for the X axis to the range you want to see.
B43: Summary format
B45: For an example of the Summary format see the Summary example worksheet.
B47: Once again, areas that you might want to type in are surrounded by a black line.
B49: The three test lines in the example illustrate the sort of thing that can be achieved. In the first test the process involved is manual and some exceptions are expected, captured in the equivalent prior sample which imagines 1 exception found in a test of 20 items. The actual results appear to be better than this and the auditor has decided to stop once it is established that the exception rate is lower than 5% with a confidence of just over 90%.
B51: In the second test a much higher level of reliability is expected and sought from a fully automated process and largely automated test. Prior testing has given quite a narrow expected range for the exception rate. In the new testing the error rate turns out to be better than in the past and the auditor decides that being 99% confident that the exception rate is below 0.1% is good enough.
B53: For the third and final test shown there is no previous evidence and the auditor stops testing having reached 95% confidence that the exception rate is below 1%.
B55: If you think these sample sizes seem rather large or the inferences are weak then you need to adjust your expectations! These samples and inferences are correct and if your department's policy is to do 30 or 50 items and the belief is that this means 95% confidence in something or other then the policy is wrong. But don't assume this means you have to increase your sample sizes. I probably means you have to be more explicit about the value of other evidence.

Sheet Test Schedule example
B2: Confidence that exception rate is:
B3: < 5% | C3: =BETADIST(0.05,C60,C61) -> 0.8157208041 | D3: =BETADIST(0.05,D60,D61) -> 0.4725219458 | E3: =BETADIST(0.05,E60,E61) -> 0.250585781
B4: < 1% | C4: =BETADIST(0.01,C60,C61) -> 0.1245493722 | D4: =BETADIST(0.01,D60,D61) -> 0.01457345125 | E4: =BETADIST(0.01,E60,E61) -> 0.001718384068
B5: < 0.1% | C5: =BETADIST(0.001,C60,C61) -> 0.001759562043 | D5: =BETADIST(0.001,D60,D61) -> 2.008921599e-05 | E5: =BETADIST(0.001,E60,E61) -> 2.406815612e-07
B7: Equivalent prior sample:
B8: Total tests | C8: 20 | D8: 10 | E8: 10
B9: Exceptions | C9: 0 | D9: 0 | E9: 0
A12: Sample | C12: Test 1 | D12: Test 2 | E12: Test 3
A13: item | B13: Identification of sample item | C13: Initials test | D13: Date check | E13: Casting
A14: 1 | B14: Invoice number 1082 | C14: Y | D14: Y | E14: Y
A15: =A14+1 -> 2 | B15: Invoice number 1465 | C15: Y | D15: Y | E15: Y
A16: =A15+1 -> 3 | B16: Invoice number 1921 | C16: Y | D16: Y | E16: Y
A17: 4 | B17: Invoice number 203 | C17: Y | D17: Y | E17: Y
A18: 5 | B18: Invoice number 2129 | C18: Y | D18: Y | E18: Y
A19: 6 | B19: Invoice number 2164 | C19: Y | D19: Y | E19: Y
A20: 7 | B20: Invoice number 2408 | C20: Y | D20: Y | E20: Y
A21: 8 | B21: Invoice number 2549 | C21: Y | D21: Y | E21: Y
A22: 9 | B22: Invoice number 267 | C22: N | D22: N | E22: N
A23: 10 | B23: Invoice number 2793 | C23: Y | D23: Y | E23: Y
A24: 11 | B24: Invoice number 2795 | C24: Y | D24: Y | E24: Y
A25: 12 | B25: Invoice number 2852 | C25: Y | D25: Y | E25: Y
A26: 13 | B26: Invoice number 3205 | C26: Y | D26: N | E26: N
A27: 14 | B27: Invoice number 3497 | C27: Y | D27: Y | E27: Y
A28: 15 | B28: Invoice number 4112 | C28: Y | D28: Y | E28: Y
A29: 16 | B29: Invoice number 4148 | C29: Y | D29: Y | E29: Y
A30: 17 | B30: Invoice number 461 | C30: Y | D30: Y | E30: N
A31: 18 | B31: Invoice number 4746 | C31: Y | D31: Y | E31: Y
A32: 19 | B32: Invoice number 5121 | C32: Y | D32: Y | E32: Y
A33: 20 | B33: Invoice number 5127 | C33: Y | D33: Y | E33: Y
A34: 21 | B34: Invoice number 515 | C34: Y | D34: Y | E34: Y
A35: 22 | B35: Invoice number 5233 | C35: Y | D35: Y | E35: Y
A36: 23 | B36: Invoice number 6094 | C36: Y | D36: Y | E36: Y
A37: 24 | B37: Invoice number 6240 | C37: Y | D37: Y | E37: Y
A38: 25 | B38: Invoice number 6618 | C38: Y | D38: Y | E38: Y
A39: 26 | B39: Invoice number 6761 | C39: Y | D39: Y | E39: Y
A40: 27 | B40: Invoice number 6896 | C40: Y | D40: Y | E40: Y
A41: 28 | B41: Invoice number 6973 | C41: Y | D41: Y | E41: Y
A42: 29 | B42: Invoice number 7481 | C42: Y | D42: Y | E42: Y
A43: 30 | B43: Invoice number 7578 | C43: Y | D43: Y | E43: Y
A44: 31 | B44: Invoice number 7677 | C44: Y | D44: Y | E44: Y
A45: 32 | B45: Invoice number 809 | C45: Y | D45: Y | E45: Y
A46: 33 | B46: Invoice number 8102 | C46: Y | D46: Y | E46: Y
A47: 34 | B47: Invoice number 8199 | C47: Y | D47: Y | E47: Y
A48: 35 | B48: Invoice number 8627 | C48: Y | D48: Y | E48: Y
A49: 36 | B49: Invoice number 9021 | C49: Y | D49: Y | E49: Y
A50: =A49+1 -> 37 | B50: Invoice number 9142 | C50: Y | D50: Y | E50: Y
A51: 38 | B51: Invoice number 924 | C51: Y | D51: Y | E51: Y
A52: 39 | B52: Invoice number 9682 | C52: Y | D52: Y | E52: Y
A53: 40 | B53: Invoice number 9813 | C53: Y | D53: Y | E53: Y
B58: Count of Y | C58: =COUNTIF(C14:C53,"Y") -> 39 | D58: =COUNTIF(D14:D53,"Y") -> 38 | E58: =COUNTIF(E14:E53,"Y") -> 37
B59: Count of N | C59: =COUNTIF(C14:C53,"N") -> 1 | D59: =COUNTIF(D14:D53,"N") -> 2 | E59: =COUNTIF(E14:E53,"N") -> 3
B60: alpha | C60: =1+C59+C9 -> 2 | D60: =1+D59+D9 -> 3 | E60: =1+E59+E9 -> 4
B61: beta | C61: =1+C58+C8-C9 -> 60 | D61: =1+D58+D8-D9 -> 49 | E61: =1+E58+E8-E9 -> 48
B64: Range for graph:
B65: Lowest exception rate | C65: 0
B66: Highest exception rate | C66: 0.1
B68: Graph data:
B69: =C65 -> 0 | C69: =IF($B69<0.98,BETADIST($B69+($C$66-$C$65)/100,C$60,C$61)-BETADIST($B69,C$60,C$61),-BETADIST($B69-($C$66-$C$65)/100,C$60,C$61)+IF($B69=1,1,BETADIST($B69,C$60,C$61))) -> 0.001759562043 | D69: =IF($B69<0.98,BETADIST($B69+($C$66-$C$65)/100,D$60,D$61)-BETADIST($B69,D$60,D$61),-BETADIST($B69-($C$66-$C$65)/100,D$60,D$61)+IF($B69=1,1,BETADIST($B69,D$60,D$61))) -> 2.008921599e-05 | E69: =IF($B69<0.98,BETADIST($B69+($C$66-$C$65)/100,E$60,E$61)-BETADIST($B69,E$60,E$61),-BETADIST($B69-($C$66-$C$65)/100,E$60,E$61)+IF($B69=1,1,BETADIST($B69,E$60,E$61))) -> 2.406815612e-07
B70: =(C$66-C$65)/20+B69 -> 0.005 | C70: =IF($B70<0.98,BETADIST($B70+($C$66-$C$65)/100,C$60,C$61)-BETADIST($B70,C$60,C$61),-BETADIST($B70-($C$66-$C$65)/100,C$60,C$61)+IF($B70=1,1,BETADIST($B70,C$60,C$61))) -> 0.01452774844 | D70: 0.001452324556 | E70: 0.0001291296054
B71: =(C$66-C$65)/20+B70 -> 0.01 | C71: 0.02060915505 | D71: 0.00415029329 | E71: 0.0007054558885
B72: 0.015 | C72: 0.02256650148 | D72: 0.007090703657 | E72: 0.001786973211
B73: 0.02 | C73: 0.02210319829 | D73: 0.009713657088 | E73: 0.003253430414
B74: 0.025 | C74: 0.02032962197 | D74: 0.01175638889 | E74: 0.004922619301
B75: 0.03 | C75: 0.01795128664 | D75: 0.01313910635 | E75: 0.006613917327
B76: 0.035 | C76: 0.0154008725 | D76: 0.01388804886 | E76: 0.00817890913
B77: 0.04 | C77: 0.01293010895 | D77: 0.01408485258 | E77: 0.009512237943
B78: 0.045 | C78: 0.01067311804 | D78: 0.01383426591 | E78: 0.01055132896
B79: 0.05 | C79: 0.008689600104 | D79: 0.01324446898 | E79: 0.01127050754
B80: 0.055 | C80: 0.006993885535 | D80: 0.01241588414 | E80: 0.01167291112
B81: 0.06 | C81: 0.005574158693 | D81: 0.01143556639 | E81: 0.01178217444
B82: 0.065 | C82: 0.004404914106 | D82: 0.01037513986 | E82: 0.01163494283
B83: 0.07 | C83: 0.003454805013 | D83: 0.009290881668 | E83: 0.01127468393
B84: 0.075 | C84: 0.002691397894 | D84: 0.008225010255 | E84: 0.01074691571
B85: 0.08 | C85: 0.002083884468 | D85: 0.007207558365 | E85: 0.01009577012
B86: 0.085 | C86: 0.001604474472 | D86: 0.006258437142 | E86: 0.009361712962
B87: 0.09 | C87: 0.001228960943 | D87: 0.005389453711 | E87: 0.008580203729
B88: 0.095 | C88: 0.000936787583 | D88: 0.004606149935 | E88: 0.007781079583
B89: 0.1 | C89: 0.0007108352423 | D89: 0.003909399402 | E89: 0.006988467786

Sheet Summary example
C3: Equivalent Prior Sample | E3: New sample results
C4: Count of | D4: Count of | E4: Count of | F4: Count of | I4: Confidence that exception rate is:
A5: Test ref | B5: Test description | C5: items tested | D5: exceptions | E5: items tested | F5: exceptions | G5: Alpha | H5: Beta | I5: < 5% | J5: < 1% | K5: < 0.1% | L5: < 0.01%
A6: 1 | B6: Authorisation initialled correctly | C6: 20 | D6: 1 | E6: 86 | F6: 1 | G6: =1+D6+F6 -> 3 | H6: =1+(C6+E6-D6-F6) -> 105 | I6: =BETADIST(0.05,$G6,$H6) -> 0.9076317032 | J6: =BETADIST(0.01,$G6,$H6) -> 0.09269529708 | K6: =BETADIST(0.001,$G6,$H6) -> 0.0001836233333 | L6: =BETADIST(0.0001,$G6,$H6) -> 1.969431775e-07
A7: =A6+1 -> 2 | B7: Matched to customer database | C7: 1000 | D7: 2 | E7: 8100 | F7: 0 | G7: =1+D7+F7 -> 3 | H7: =1+(C7+E7-D7-F7) -> 9099 | I7: =BETADIST(0.05,$G7,$H7) -> 1 | J7: =BETADIST(0.01,$G7,$H7) -> 1 | K7: =BETADIST(0.001,$G7,$H7) -> 0.9942696657 | L7: =BETADIST(0.0001,$G7,$H7) -> 0.06452116036
A8: =A7+1 -> 3 | B8: Correctly split | C8: 0 | D8: 0 | E8: 298 | F8: 0 | G8: 1 | H8: 299 | I8: 0.9999997815 | J8: 0.9504637434 | K8: 0.2585515194 | L8: 0.0294588681
A9: 4 | C9: 0 | D9: 0 | G9: 1 | H9: 1 | I9: 0.05 | J9: 0.01 | K9: 0.001 | L9: 0.0001
A10: 5 | C10: 0 | D10: 0 | G10: 1 | H10: 1 | I10: 0.05 | J10: 0.01 | K10: 0.001 | L10: 0.0001
A11: 6 | C11: 0 | D11: 0 | G11: 1 | H11: 1 | I11: 0.05 | J11: 0.01 | K11: 0.001 | L11: 0.0001
A12: 7 | C12: 0 | D12: 0 | G12: 1 | H12: 1 | I12: 0.05 | J12: 0.01 | K12: 0.001 | L12: 0.0001
A13: 8 | C13: 0 | D13: 0 | G13: 1 | H13: 1 | I13: 0.05 | J13: 0.01 | K13: 0.001 | L13: 0.0001
A14: 9 | C14: 0 | D14: 0 | G14: 1 | H14: 1 | I14: 0.05 | J14: 0.01 | K14: 0.001 | L14: 0.0001
A15: =A14+1 -> 10 | C15: 0 | D15: 0 | G15: =1+D15+F15 -> 1 | H15: =1+(C15+E15-D15-F15) -> 1 | I15: 0.05 | J15: 0.01 | K15: 0.001 | L15: 0.0001

Sheet Test Schedule format
B2: Confidence that exception rate is:
B3: < 5% | C3: =BETADIST(0.05,C60,C61) -> 0.05 | D3: =BETADIST(0.05,D60,D61) -> 0.05 | E3: =BETADIST(0.05,E60,E61) -> 0.05
B4: < 1% | C4: =BETADIST(0.01,C60,C61) -> 0.01 | D4: =BETADIST(0.01,D60,D61) -> 0.01 | E4: =BETADIST(0.01,E60,E61) -> 0.01
B5: < 0.1% | C5: =BETADIST(0.001,C60,C61) -> 0.001 | D5: =BETADIST(0.001,D60,D61) -> 0.001 | E5: =BETADIST(0.001,E60,E61) -> 0.001
B7: Equivalent prior sample:
B8: Total tests | C8: 0 | D8: 0 | E8: 0
B9: Exceptions | C9: 0 | D9: 0 | E9: 0
A12: Sample | C12: Test 1 | D12: Test 2 | E12: Test 3
A13: item | B13: Identification of sample item | C13: OK? | D13: OK? | E13: OK?
A14: 1
A15: =A14+1 -> 2
A16: =A15+1 -> 3
A17: 4
A18: 5
A19: 6
A20: 7
A21: 8
A22: 9
A23: 10
A24: 11
A25: 12
A26: 13
A27: 14
A28: 15
A29: 16
A30: 17
A31: 18
A32: 19
A33: 20
A34: 21
A35: 22
A36: 23
A37: 24
A38: 25
A39: 26
A40: 27
A41: 28
A42: 29
A43: 30
A44: 31
A45: 32
A46: 33
A47: 34
A48: 35
A49: 36
A50: =A49+1 -> 37
A51: 38
A52: 39
A53: 40
B58: Count of Y | C58: =COUNTIF(C14:C53,"Y") -> 0 | D58: =COUNTIF(D14:D53,"Y") -> 0 | E58: =COUNTIF(E14:E53,"Y") -> 0
B59: Count of N | C59: =COUNTIF(C14:C53,"N") -> 0 | D59: =COUNTIF(D14:D53,"N") -> 0 | E59: =COUNTIF(E14:E53,"N") -> 0
B60: alpha | C60: =1+C59+C9 -> 1 | D60: =1+D59+D9 -> 1 | E60: =1+E59+E9 -> 1
B61: beta | C61: =1+C58+C8-C9 -> 1 | D61: =1+D58+D8-D9 -> 1 | E61: =1+E58+E8-E9 -> 1
B64: Range for graph:
B65: Lowest exception rate | C65: 0
B66: Highest exception rate | C66: 0.1
B68: Graph data:
B69: =C65 -> 0 | C69: =IF($B69<0.98,BETADIST($B69+($C$66-$C$65)/100,C$60,C$61)-BETADIST($B69,C$60,C$61),-BETADIST($B69-($C$66-$C$65)/100,C$60,C$61)+IF($B69=1,1,BETADIST($B69,C$60,C$61))) -> 0.001 | D69: =IF($B69<0.98,BETADIST($B69+($C$66-$C$65)/100,D$60,D$61)-BETADIST($B69,D$60,D$61),-BETADIST($B69-($C$66-$C$65)/100,D$60,D$61)+IF($B69=1,1,BETADIST($B69,D$60,D$61))) -> 0.001 | E69: =IF($B69<0.98,BETADIST($B69+($C$66-$C$65)/100,E$60,E$61)-BETADIST($B69,E$60,E$61),-BETADIST($B69-($C$66-$C$65)/100,E$60,E$61)+IF($B69=1,1,BETADIST($B69,E$60,E$61))) -> 0.001
B70: =(C$66-C$65)/20+B69 -> 0.005 | C70: =IF($B70<0.98,BETADIST($B70+($C$66-$C$65)/100,C$60,C$61)-BETADIST($B70,C$60,C$61),-BETADIST($B70-($C$66-$C$65)/100,C$60,C$61)+IF($B70=1,1,BETADIST($B70,C$60,C$61))) -> 0.001 | D70: 0.001 | E70: 0.001
B71: =(C$66-C$65)/20+B70 -> 0.01 | C71: 0.001 | D71: 0.001 | E71: 0.001
B72: 0.015 | C72: 0.001 | D72: 0.001 | E72: 0.001
B73: 0.02 | C73: 0.001 | D73: 0.001 | E73: 0.001
B74: 0.025 | C74: 0.001 | D74: 0.001 | E74: 0.001
B75: 0.03 | C75: 0.001 | D75: 0.001 | E75: 0.001
B76: 0.035 | C76: 0.001 | D76: 0.001 | E76: 0.001
B77: 0.04 | C77: 0.001 | D77: 0.001 | E77: 0.001
B78: 0.045 | C78: 0.001 | D78: 0.001 | E78: 0.001
B79: 0.05 | C79: 0.001 | D79: 0.001 | E79: 0.001
B80: 0.055 | C80: 0.001 | D80: 0.001 | E80: 0.001
B81: 0.06 | C81: 0.001 | D81: 0.001 | E81: 0.001
B82: 0.065 | C82: 0.001 | D82: 0.001 | E82: 0.001
B83: 0.07 | C83: 0.001 | D83: 0.001 | E83: 0.001
B84: 0.075 | C84: 0.001 | D84: 0.001 | E84: 0.001
B85: 0.08 | C85: 0.001 | D85: 0.001 | E85: 0.001
B86: 0.085 | C86: 0.001 | D86: 0.001 | E86: 0.001
B87: 0.09 | C87: 0.001 | D87: 0.001 | E87: 0.001
B88: 0.095 | C88: 0.001 | D88: 0.001 | E88: 0.001
B89: 0.1 | C89: 0.001 | D89: 0.001 | E89: 0.001

Sheet Summary format
C3: Equivalent Prior Sample | E3: New sample results
C4: Count of | D4: Count of | E4: Count of | F4: Count of | I4: Confidence that exception rate is:
A5: Test ref | B5: Test description | C5: items tested | D5: exceptions | E5: items tested | F5: exceptions | G5: Alpha | H5: Beta | I5: < 5% | J5: < 1% | K5: < 0.1% | L5: < 0.01%
A6: 1 | C6: 0 | D6: 0 | E6: 0 | F6: 0 | G6: =1+D6+F6 -> 1 | H6: =1+(C6+E6-D6-F6) -> 1 | I6: =BETADIST(0.05,$G6,$H6) -> 0.05 | J6: =BETADIST(0.01,$G6,$H6) -> 0.01 | K6: =BETADIST(0.001,$G6,$H6) -> 0.001 | L6: =BETADIST(0.0001,$G6,$H6) -> 0.0001
A7: =A6+1 -> 2 | C7: 0 | D7: 0 | E7: 0 | F7: 0 | G7: =1+D7+F7 -> 1 | H7: =1+(C7+E7-D7-F7) -> 1 | I7: =BETADIST(0.05,$G7,$H7) -> 0.05 | J7: =BETADIST(0.01,$G7,$H7) -> 0.01 | K7: =BETADIST(0.001,$G7,$H7) -> 0.001 | L7: =BETADIST(0.0001,$G7,$H7) -> 0.0001
A8: =A7+1 -> 3 | C8: 0 | D8: 0 | E8: 0 | F8: 0 | G8: 1 | H8: 1 | I8: 0.05 | J8: 0.01 | K8: 0.001 | L8: 0.0001
A9: 4 | C9: 0 | D9: 0 | E9: 0 | F9: 0 | G9: 1 | H9: 1 | I9: 0.05 | J9: 0.01 | K9: 0.001 | L9: 0.0001
A10: 5 | C10: 0 | D10: 0 | E10: 0 | F10: 0 | G10: 1 | H10: 1 | I10: 0.05 | J10: 0.01 | K10: 0.001 | L10: 0.0001
A11: 6 | C11: 0 | D11: 0 | E11: 0 | F11: 0 | G11: 1 | H11: 1 | I11: 0.05 | J11: 0.01 | K11: 0.001 | L11: 0.0001
A12: 7 | C12: 0 | D12: 0 | E12: 0 | F12: 0 | G12: 1 | H12: 1 | I12: 0.05 | J12: 0.01 | K12: 0.001 | L12: 0.0001
A13: 8 | C13: 0 | D13: 0 | E13: 0 | F13: 0 | G13: 1 | H13: 1 | I13: 0.05 | J13: 0.01 | K13: 0.001 | L13: 0.0001
A14: 9 | C14: 0 | D14: 0 | E14: 0 | F14: 0 | G14: 1 | H14: 1 | I14: 0.05 | J14: 0.01 | K14: 0.001 | L14: 0.0001
A15: =A14+1 -> 10 | C15: 0 | D15: 0 | E15: 0 | F15: 0 | G15: =1+D15+F15 -> 1 | H15: =1+(C15+E15-D15-F15) -> 1 | I15: 0.05 | J15: 0.01 | K15: 0.001 | L15: 0.0001
